fUST/lending_fUST_20250428
["ID","MTS","AMOUNT","RATE_DAILY","PERIOD"]
[359202772,1745807440745,-2000.0,0.000375,30]
[359202773,1745807440755,-2000.0,0.000375,30]
[359202774,1745807440765,-2000.0,0.000375,30]
[359202775,1745807440775,-2000.0,0.000375,30]
[359202776,1745807440785,-2000.0,0.000375,30]
[359202777,1745807440795,-2000.0,0.000375,30]
[359202778,1745807440805,-2000.0,0.000375,30]
[359202779,1745807440814,-2000.0,0.000375,30]
[359202780,1745807440824,-2000.0,0.000375,30]
[359202781,1745807440834,-2230.89,0.000375,30]
[359202782,1745807440846,-515.4,0.00037531,2]
[359202783,1745807440856,-762.54,0.00037534,2]
[359202784,1745807440865,-982.9,0.00037534,2]
[359202785,1745807440874,-400.0,0.00037534,2]
[359202786,1745807440884,-562.53,0.00037534,2]
[359202787,1745807440894,-540.3,0.00037534,2]
[359202788,1745807440904,-536.8,0.00037534,2]
[359202789,1745807440914,-1187.7,0.00037549,51]
[359202790,1745807440923,-1012.02885769,0.000376,10]
[359202791,1745807440934,-153.0,0.00037616,30]
[359202792,1745807440943,-200.0,0.00037637,120]
[359202793,1745807440952,-1187.7,0.00037699,79]
[359202794,1745807440962,-1007.16913497,0.000378,2]
[359202795,1745807440978,-515.4,0.00037805,2]
[359202796,1745807440988,-762.54,0.00037808,2]
[359202797,1745807440999,-982.9,0.00037808,2]
[359202798,1745807441010,-400.0,0.00037808,2]
[359202799,1745807441021,-562.53,0.00037808,2]
[359202800,1745807441031,-540.3,0.00037808,2]
[359202801,1745807441040,-536.8,0.00037808,2]
[359202802,1745807441051,-468.62230801,0.00037831,14]
[359202803,1745807441060,-1187.7,0.00037849,41]
[359202804,1745807441070,-150.0,0.00037873,4]
[359202805,1745807441078,-51332.13150827,0.000379,60]
[359202806,1745807441091,-16361.12947574,0.000379,60]
[359202807,1745807441104,-1474.68474239,0.000379,60]
[359202808,1745807441118,-42366.02156251,0.000379,60]
[359202809,1745807441144,-400.0,0.00032876,2]
[359202810,1745807441154,-400.0,0.0003315,2]
[359202811,1745807441165,-1428.14330932,0.000379,60]
[359202812,1745807441177,-545.1936999,0.000379,60]
[359202813,1745807441188,-84311.95792534,0.000379,60]
[359202827,1745807445807,-400.0,0.00032876,2]
[359202828,1745807445817,-400.0,0.00032876,2]
[359202829,1745807445828,-400.0,0.00032876,2]
[359202830,1745807445838,-506.49728104,0.00032876,2]
[359202831,1745807445847,-400.0,0.00032876,2]
[359202832,1745807445857,-500.0,0.00032876,2]
[359202833,1745807445867,-400.0,0.0003315,2]
[359202834,1745807445876,-211.10282329,0.0003315,2]
[359202835,1745807445886,-400.0,0.0003315,2]
[359202836,1745807445895,-400.0,0.0003315,2]
[359202837,1745807445905,-205.86832164,0.00033424,2]
[359202838,1745807445914,-400.0,0.00033424,2]
[359202839,1745807445924,-207.33727576,0.00033424,2]
[359202840,1745807445934,-400.0,0.00033424,2]
[359202841,1745807445944,-400.0,0.00033698,2]
[359202842,1745807445953,-400.0,0.00033698,2]
[359202843,1745807445963,-400.0,0.00033972,2]
[359202844,1745807445974,-400.0,0.00033972,2]
[359202845,1745807445984,-500.0,0.00034246,2]
[359202846,1745807445994,-400.0,0.00034246,2]
[359202847,1745807446004,-400.0,0.0003452,2]
[359202848,1745807446014,-282.25970042,0.00034794,2]
[359202849,1745807446025,-64828.84637462,0.000379,60]
[359202850,1745807446037,-1904.18341143,0.000379,60]
[359202851,1745807446102,-8487.13691729,0.000379,60]
[359202852,1745807458864,265.05123562,0.00025,2]
[359202853,1745807458884,111.87876438,0.00025,2]
[359202854,1745807496484,311.36370054,0.00026,30]
[359202862,1745807681402,9492.5,0.00025,30]
[359202885,1745808350115,-909.11816295,0.000248,2]
[359202886,1745808350136,-436.73275984,0.00024898,2]
[359202887,1745808350156,-160.0,0.0002499,2]
[359202888,1745808350177,-323.08970393,0.00024992,2]
[359202890,1745808434090,-183.69456079,0.00025,2]
[359202891,1745808445080,-155.54543921,0.00025,2]
[359202892,1745808445101,-114.23370536,0.00026702,2]
[359202899,1745808551160,-322.49905446,0.00026702,2]
[359202900,1745808551182,-313.28589057,0.00027,3]
[359202901,1745808551202,-313.28589057,0.00027,3]
[359202902,1745808551223,-500.0,0.00027397,5]
[359202903,1745808551244,-505.13066334,0.00027549,2]
[359202904,1745808569098,-694.86933666,0.00027549,2]
[359202905,1745808569125,-243.31893085,0.00027549,2]
[359202906,1745808570103,-177.88888911,0.00027549,2]
[359202907,1745808570129,-310.316856,0.00027943,2]
[359202908,1745808570155,-300.0,0.00028428,2]
[359202909,1745808570179,-224.93640988,0.00028429,2]
[359202910,1745808570376,305.32,0.00025,2]
[359202911,1745808614605,313.28589057,0.00027,3]
[359202912,1745808615460,313.28589057,0.00027,3]
[359202915,1745808631841,-500.0,0.00027397,5]
[359202916,1745808631851,-150.268,0.00027479,2]
[359202917,1745808631859,-15655.25618358,0.0002843,2]
[359202918,1745808631947,-1969.31220822,0.0002843,2]
[359202919,1745808631957,-436.73275982,0.00028506,2]
[359202920,1745808631966,-3861.8667423,0.0002855,2]
[359202921,1745808631975,-188.86296,0.00028884,2]
[359202922,1745808631986,-166.0,0.00029011,2]
[359202923,1745808631995,-972.920303,0.00029542,120]
[359202924,1745808632005,-203.72397133,0.000299,8]
[359202925,1745808632014,-223.0,0.0003,2]
[359202926,1745808632023,-203.72397132,0.00030355,9]
[359202927,1745808632032,-203.72397132,0.00030809,9]
[359202928,1745808632042,-203.72397132,0.00031264,9]
[359202929,1745808632051,-203.72397132,0.00031718,10]
[359202930,1745808632061,-203.72397132,0.00032173,10]
[359202931,1745808632070,-186.0,0.00032619,2]
[359202932,1745808632079,-203.72397132,0.00032627,10]
[359202933,1745808632089,-250.57703016,0.00032773,2]
[359202934,1745808632099,-500.0,0.00032865,2]
[359202935,1745808632108,-430.78139982,0.00032865,2]
[359202936,1745808632117,-177.313,0.00032865,33]
[359202937,1745808632126,-203594.19715649,0.00032866,2]
[359202938,1745808632138,-162072.1177286,0.00032866,2]
[359202939,1745808632149,-449.03568,0.00032866,2]
[359202940,1745808632268,-20.41050675,0.00032866,2]
[359202961,1745808638208,-185.0,0.00032866,2]
[359202962,1745808638218,-121286.90434616,0.00032866,2]
[359202963,1745808638228,-508.24817822,0.00032873,2]
[359202964,1745808638238,-500.0,0.00032873,5]
[359202966,1745808638247,-300.0,0.00032873,5]
[359202968,1745808638257,-500.0,0.00032873,5]
[359202971,1745808638266,-502.40456438,0.00032876,120]
[359202972,1745808638275,-500.0,0.00032876,2]
[359202973,1745808638284,-400.0,0.00032876,2]
[359202974,1745808638293,-400.0,0.00032876,2]
[359202975,1745808638303,-502.52922372,0.00032876,2]
[359202976,1745808638315,-500.61918952,0.00032876,2]
[359202977,1745808638323,-502.62499206,0.00032876,2]
[359202978,1745808638332,-505.05803926,0.00032876,2]
[359202979,1745808638341,-504.3714313,0.00032876,2]
[359202980,1745808638352,-400.0,0.00032876,2]
[359202981,1745808638361,-503.78410633,0.00032876,2]
[359202982,1745808638370,-300.0,0.00032876,2]
[359202983,1745808638379,-504.49243503,0.00032876,2]
[359202984,1745808638388,-507.43374624,0.00032876,2]
[359202985,1745808638397,-501.41437261,0.00032876,2]
[359202986,1745808638407,-504.0851571,0.00032876,2]
[359202987,1745808638419,-400.0,0.00032876,2]
[359202988,1745808638428,-507.18294105,0.00032876,2]
[359202989,1745808638439,-172.02400006,0.00032876,2]
[359202990,1745808638449,-502.76157246,0.00032876,2]
[359202991,1745808638458,-400.0,0.00032876,2]
[359202992,1745808638468,-503.4718269,0.00032876,2]
[359202993,1745808638477,-500.70753583,0.00032876,2]
[359202994,1745808638487,-400.0,0.00032876,2]
[359202995,1745808638496,-501.6054833,0.00032876,2]
[359202996,1745808638505,-400.0,0.00032876,2]
[359202997,1745808638515,-447.7435611,0.00032876,2]
[359202998,1745808638524,-502.03805757,0.00032876,2]
[359202999,1745808638534,-503.02788746,0.00032876,2]
[359203000,1745808638554,-509.86154018,0.00032876,2]
[359203001,1745808638564,-505.02800321,0.00032876,2]
[359203002,1745808638574,-400.0,0.00032876,2]
[359203003,1745808638583,-507.32972753,0.00032876,2]
[359203004,1745808638593,-500.94522763,0.00032876,2]
[359203005,1745808638602,-502.44125764,0.00032876,2]
[359203006,1745808638612,-503.52815401,0.00032876,2]
[359203007,1745808638623,-502.62238594,0.00032876,2]
[359203008,1745808638635,-400.0,0.00032876,2]
[359203009,1745808638646,-400.0,0.00032876,2]
[359203010,1745808638655,-400.0,0.00032876,2]
[359203011,1745808638666,-400.0,0.00032876,2]
[359203012,1745808638676,-400.0,0.00032876,2]
[359203013,1745808638688,-400.0,0.00032876,2]
[359203014,1745808638699,-498.72677436,0.00032876,2]
[359203015,1745808638709,-384.87019497,0.00032876,2]
[359203016,1745808638720,-505.97868927,0.00032876,2]
[359203017,1745808638731,-502.45292438,0.00032876,2]
[359203018,1745808638740,-400.0,0.00032876,2]
[359203019,1745808638750,-500.48996801,0.00032876,2]
[359203020,1745808638759,-400.0,0.00032876,2]
[359203021,1745808638769,-400.0,0.00032876,2]
[359203022,1745808638779,-400.0,0.00032876,2]
[359203023,1745808638789,-400.0,0.00032876,2]
[359203024,1745808638798,-501.56798781,0.00032876,2]
[359203025,1745808638808,-400.0,0.00032876,2]
[359203026,1745808638818,-400.0,0.00032876,2]
[359203027,1745808638828,-501.804325,0.00032876,2]
[359203028,1745808638838,-400.0,0.00032876,2]
[359203029,1745808638848,-400.0,0.00032876,2]
[359203030,1745808638858,-503.79302745,0.00032876,2]
[359203031,1745808638868,-502.06919339,0.00032876,2]
[359203032,1745808638877,-501.09991588,0.00032876,2]
[359203033,1745808638887,-501.61541445,0.00032876,2]
[359203034,1745808638896,-400.0,0.00032876,2]
[359203035,1745808638905,-400.0,0.00032876,2]
[359203036,1745808638915,-502.17481969,0.00032876,2]
[359203037,1745808638924,-301.26143887,0.00032876,2]
[359203038,1745808638934,-167.95297275,0.00032876,2]
[359203039,1745808638943,-500.0,0.00032876,2]
[359203040,1745808638953,-502.10184368,0.00032876,2]
[359203041,1745808638962,-507.87176692,0.00032876,2]
[359203042,1745808638972,-501.40863428,0.00032876,2]
[359203043,1745808638982,-501.2887558,0.00032876,2]
[359203044,1745808638991,-505.81923906,0.00032876,2]
[359203045,1745808639000,-502.98215689,0.00032876,2]
[359203046,1745808639010,-400.0,0.00032876,2]
[359203047,1745808639019,-503.21943721,0.00032876,2]
[359203048,1745808639031,-500.9053445,0.00032876,2]
[359203049,1745808639041,-501.90280292,0.00032876,2]
[359203050,1745808639051,-504.27919905,0.00032876,2]
[359203051,1745808639061,-500.70463981,0.00032876,2]
[359203052,1745808639070,-501.47565888,0.00032876,2]
[359203053,1745808639080,-502.92842454,0.00032876,2]
[359203054,1745808639090,-504.3241355,0.00032876,2]
[359203055,1745808639100,-400.0,0.00032876,2]
[359203056,1745808639109,-501.01745025,0.00032876,2]
[359203057,1745808639119,-303.2495256,0.00032876,2]
[359203058,1745808639128,-400.0,0.00032876,2]
[359203059,1745808639138,-400.0,0.00032876,2]
[359203060,1745808639147,-400.0,0.00032876,2]
[359203061,1745808639157,-400.0,0.00032876,2]
[359203062,1745808639167,-503.0211673,0.00032876,2]
[359203063,1745808639177,-400.0,0.00032876,2]
[359203064,1745808639186,-503.29883282,0.00032876,2]
[359203065,1745808639196,-507.94294035,0.00032876,2]
[359203066,1745808639206,-400.0,0.00032876,2]
[359203067,1745808639217,-365.99721662,0.00032876,2]
[359203068,1745808639229,-400.0,0.00032876,2]
[359203069,1745808639239,-503.7431876,0.00032876,2]
[359203070,1745808639249,-519.54213456,0.00032876,2]
[359203071,1745808639259,-500.0,0.00032876,2]
[359203072,1745808639268,-510.1465928,0.00032876,2]
[359203073,1745808639278,-500.83431684,0.00032876,2]
[359203074,1745808639288,-509.57240259,0.00032876,2]
[359203075,1745808639300,-400.0,0.00032876,2]
[359203076,1745808639314,-505.28359158,0.00032876,2]
[359203077,1745808639326,-508.78651127,0.00032876,2]
[359203078,1745808639337,-502.24797335,0.00032876,2]
[359203079,1745808639348,-400.0,0.00032876,2]
[359203080,1745808639358,-400.0,0.00032876,2]
[359203081,1745808639367,-400.0,0.00032876,2]
[359203082,1745808639377,-507.72150104,0.00032876,2]
[359203083,1745808639387,-505.89625141,0.00032876,2]
[359203084,1745808639397,-400.0,0.00032876,2]
[359203085,1745808639406,-545.86230925,0.00032876,2]
[359203086,1745808639415,-500.0,0.00032876,2]
[359203087,1745808639426,-400.0,0.00032876,2]
[359203088,1745808639436,-400.0,0.00032876,2]
[359203089,1745808639447,-400.0,0.00032876,2]
[359203090,1745808639458,-503.44705559,0.00032876,2]
[359203091,1745808639468,-317.9416985,0.00032876,2]
[359203092,1745808639478,-400.0,0.00032876,2]
[359203093,1745808639488,-501.26909707,0.00032876,2]
[359203094,1745808639498,-400.0,0.00032876,2]
[359203095,1745808639508,-400.0,0.00032876,2]
[359203096,1745808639518,-191.18410803,0.00032876,2]
[359203099,1745808643078,-312.16941797,0.00032876,2]
[359203100,1745808643088,-165.30322955,0.00032876,2]
[359203101,1745808643184,-234.69677045,0.00032876,2]
[359203102,1745808643194,-400.0,0.00032876,2]
[359203103,1745808643203,-400.0,0.00032876,2]
[359203104,1745808643212,-503.06826877,0.00032876,2]
[359203105,1745808643221,-504.33605266,0.00032876,2]
[359203106,1745808643231,-500.0,0.00032876,2]
[359203108,1745808643240,-500.0,0.00032876,2]
[359203110,1745808643249,-500.0,0.00032876,2]
[359203112,1745808643258,-500.0,0.00032876,2]
[359203114,1745808643267,-400.0,0.00032876,2]
[359203115,1745808643277,-500.0,0.00032876,2]
[359203116,1745808643287,-500.0,0.00032876,2]
[359203117,1745808643296,-500.0,0.00032876,2]
[359203118,1745808643306,-400.0,0.00032876,2]
[359203119,1745808643316,-528.18463965,0.00032876,2]
[359203120,1745808643325,-400.0,0.00032876,2]
[359203121,1745808643335,-502.82917298,0.00032876,2]
[359203122,1745808643344,-400.0,0.00032876,2]
[359203123,1745808643354,-213.04771237,0.00032876,2]
[359203124,1745808646061,-482.51649499,0.00032776,2]
[359203126,1745808646071,-294.32893433,0.00032876,2]
[359203127,1745808646083,-400.0,0.00032876,2]
[359203128,1745808646093,-1006.03845383,0.00032876,2]
[359203129,1745808646103,-506.13888527,0.00032876,2]
[359203130,1745808646113,-503.0205996,0.00032876,2]
[359203131,1745808646123,-510.85372531,0.00032876,2]
[359203132,1745808646133,-400.0,0.00032876,2]
[359203133,1745808646143,-501.54144042,0.00032876,2]
[359203134,1745808646153,-400.0,0.00032876,2]
[359203135,1745808646163,-167.42876058,0.00032876,2]
[359203136,1745808646175,-232.57123942,0.00032876,2]
[359203137,1745808646186,-500.0,0.00032876,2]
[359203138,1745808646195,-505.79481509,0.00032876,2]
[359203139,1745808646205,-400.0,0.00032876,2]
[359203140,1745808646215,-220.8479731,0.00032876,2]
[359203141,1745808646224,-512.19705469,0.00032876,2]
[359203142,1745808646233,-506.99857555,0.00032876,2]
[359203143,1745808646243,-503.79631679,0.00032876,2]
[359203144,1745808646253,-400.0,0.00032876,2]
[359203145,1745808646262,-133.59748105,0.00032876,2]
[359203146,1745808646274,-266.40251895,0.00032876,2]
[359203147,1745808646283,-273.83709266,0.00032876,2]
[359203148,1745808646295,-228.7682678,0.00032876,2]
[359203149,1745808646305,-400.0,0.00032876,2]
[359203150,1745808646315,-500.0,0.00032876,2]
[359203151,1745808646326,-400.0,0.00032876,2]
[359203152,1745808646335,-400.0,0.00032876,2]
[359203153,1745808646344,-400.0,0.00032876,2]
[359203154,1745808646354,-400.0,0.00032876,2]
[359203155,1745808646364,-503.51206005,0.00032876,2]
[359203156,1745808646373,-400.0,0.00032876,2]
[359203157,1745808646384,-400.0,0.00032876,2]
[359203158,1745808646393,-400.0,0.00032876,2]
[359203159,1745808646402,-503.81160568,0.00032876,2]
[359203160,1745808646413,-500.0,0.00032876,2]
[359203161,1745808646423,-500.0,0.00032876,2]
[359203162,1745808646434,-500.0,0.00032876,2]
[359203163,1745808646443,-400.0,0.00032876,2]
[359203164,1745808646452,-341.00392858,0.00032876,2]
[359203165,1745808646462,-400.0,0.00032876,2]
[359203166,1745808646472,-400.0,0.00032876,2]
[359203167,1745808646481,-400.0,0.00032876,2]
[359203168,1745808646491,-504.38465165,0.00032876,2]
[359203169,1745808646500,-400.0,0.00032876,2]
[359203170,1745808646509,-273.77058284,0.00032876,2]
[359203171,1745808646521,-126.22941716,0.00032876,2]
[359203172,1745808646531,-502.21198145,0.00032876,2]
[359203173,1745808646540,-400.0,0.00032876,2]
[359203174,1745808646549,-500.95447752,0.00032876,2]
[359203175,1745808646558,-502.4553207,0.00032876,2]
[359203176,1745808646567,-501.49878327,0.00032876,2]
[359203177,1745808646576,-504.25405462,0.00032876,2]
[359203178,1745808646585,-400.0,0.00032876,2]
[359203179,1745808646594,-400.0,0.00032876,2]
[359203180,1745808646603,-400.0,0.00032876,2]
[359203181,1745808646612,-400.0,0.00032876,2]
[359203182,1745808646622,-500.0,0.00032876,2]
[359203183,1745808646631,-514.30171163,0.00032876,2]
[359203184,1745808646640,-502.14842974,0.00032876,2]
[359203185,1745808646650,-400.0,0.00032876,2]
[359203186,1745808646659,-400.0,0.00032876,2]
[359203187,1745808646668,-400.0,0.00032876,2]
[359203188,1745808646677,-400.0,0.00032876,2]
[359203189,1745808646686,-400.0,0.00032876,2]
[359203190,1745808646696,-400.0,0.00032876,2]
[359203191,1745808646705,-505.16405602,0.00032876,2]
[359203192,1745808646714,-400.0,0.00032876,2]
[359203193,1745808646723,-400.0,0.00032876,2]
[359203194,1745808646732,-400.0,0.00032876,2]
[359203195,1745808646741,-501.04312732,0.00032876,2]
[359203196,1745808646750,-400.0,0.00032876,2]
[359203197,1745808646760,-400.0,0.00032876,2]
[359203198,1745808646769,-501.56730456,0.00032876,2]
[359203199,1745808646778,-400.0,0.00032876,2]
[359203200,1745808646787,-508.64363745,0.00032876,2]
[359203201,1745808646797,-400.0,0.00032876,2]
[359203202,1745808646806,-400.0,0.00032876,2]
[359203203,1745808646815,-400.0,0.00032876,2]
[359203204,1745808646824,-400.0,0.00032876,2]
[359203205,1745808646833,-400.0,0.00032876,2]
[359203206,1745808646843,-400.0,0.00032876,2]
[359203207,1745808646852,-400.0,0.00032876,2]
[359203208,1745808646863,-400.0,0.00032876,2]
[359203209,1745808646872,-400.0,0.00032876,2]
[359203210,1745808646882,-400.0,0.00032876,2]
[359203211,1745808646891,-400.0,0.00032876,2]
[359203212,1745808646900,-400.0,0.00032876,2]
[359203213,1745808646910,-400.0,0.00032876,2]
[359203214,1745808646920,-500.83239991,0.00032876,2]
[359203215,1745808646930,-400.0,0.00032876,2]
[359203216,1745808646939,-400.0,0.00032876,2]
[359203217,1745808646949,-501.97856787,0.00032876,2]
[359203218,1745808646959,-400.0,0.00032876,2]
[359203219,1745808646968,-400.0,0.00032876,2]
[359203220,1745808646978,-376.38892452,0.00032876,2]
[359203221,1745808647132,-29.97546051,0.00032876,2]
[359203268,1745809552096,-422.20193309,0.00018485,2]
[359203269,1745809552117,-1367.35297248,0.0001858,2]
[359203276,1745809643141,-1818.80202327,0.000185,2]
[359203279,1745809751138,-300.0,0.00018498,2]
[359203280,1745809751165,-500.0,0.00018499,2]
[359203281,1745809751190,-500.0,0.00018499,2]
[359203282,1745809751214,-500.0,0.00018499,2]
[359203283,1745809751238,-500.0,0.00018499,2]
[359203284,1745809751263,-500.0,0.00018499,2]
[359203285,1745809751287,-500.0,0.00018499,2]
[359203286,1745809751311,-500.0,0.00018499,2]
[359203287,1745809751336,-500.0,0.00018499,2]
[359203288,1745809751361,-500.0,0.00018499,2]
[359203289,1745809751386,-500.0,0.00018499,2]
[359203290,1745809751411,-500.0,0.00018499,2]
[359203291,1745809751436,-500.0,0.00018499,2]
[359203292,1745809751461,-500.0,0.00018499,2]
[359203293,1745809751488,-167.95560166,0.00018499,2]
[359203294,1745809751512,-500.0,0.00018499,2]
[359203295,1745809751536,-12007.12183834,0.000185,2]
[359203296,1745809752140,-58742.72316591,0.000185,2]
[359203297,1745809752171,-27155.91319889,0.00018579,2]
[359203298,1745809752205,-8458.53753376,0.00018579,2]
[359203299,1745809752232,-151.58690764,0.00018585,2]
[359203300,1745809758109,-420.0,0.00020173,2]
[359203301,1745809758137,-205.11101799,0.000209,3]
[359203302,1745809758159,-422.20193307,0.00021434,2]
[359203303,1745809758185,-205.11101785,0.0002185,3]
[359203304,1745809758212,-205.11101785,0.000228,4]
[359203305,1745809758240,-205.11101785,0.0002375,4]
[359203306,1745809758264,-422.20193307,0.00024383,2]
[359203307,1745809758289,-205.11101785,0.000247,5]
[359203308,1745809758314,-176.07153662,0.00024899,2]
[359203309,1745809758338,-546.89773436,0.00024899,2]
[359203310,1745809758362,-500.0,0.00024899,2]
[359203311,1745809758386,-25944.39029028,0.000249,2]
[359203348,1745809832097,-160.0,0.00023,7]
[359203350,1745809832107,-1200.0,0.00024799,2]
[359203352,1745809832117,-12799.08,0.000248,2]
[359203354,1745809832126,-6156.96877827,0.000249,2]
[359203363,1745809832203,-949.79031978,0.000249,2]
[359203533,1745809838154,-500.0,0.00024899,2]
[359203535,1745809838165,-500.0,0.00024899,2]
[359203537,1745809838176,-105821.07484967,0.000249,2]
[359203539,1745809838186,-274.78,0.00025,2]
[359203541,1745809838196,-232.82841405,0.00025367,2]
[359203543,1745809838205,-500.0,0.00025367,2]
[359203545,1745809838215,-17685.2631321,0.00025368,2]
[359203547,1745809838224,-250.0,0.00025421,2]
[359203549,1745809838234,-801.8787752,0.00025421,2]
[359203551,1745809838243,-445.1258425,0.00025508,2]
[359203553,1745809838252,-205.11101785,0.0002565,6]
[359203555,1745809838262,-213.841882,0.00026204,2]
[359203557,1745809838271,-840.59878455,0.00026564,2]
[359203559,1745809838280,-175.921981,0.00026578,2]
[359203561,1745809838290,-205.11101785,0.000266,6]
[359203563,1745809838299,-175.921981,0.00026612,2]
[359203565,1745809838310,-175.921981,0.00026645,2]
[359203567,1745809838319,-175.921981,0.00026678,2]
[359203570,1745809838330,-175.921981,0.00026711,2]
[359203572,1745809838344,-313.28589057,0.00027,3]
[359203574,1745809838353,-422.20193307,0.00027332,2]
[359203576,1745809838362,-1500.0,0.00027397,2]
[359203578,1745809838372,-500.0,0.00027397,5]
[359203580,1745809838382,-205.11101785,0.0002755,7]
[359203582,1745809838392,-205.11101785,0.000285,8]
[359203583,1745809838402,-199.7757001,0.00028521,120]
[359203585,1745809838412,-729.690227,0.00028757,120]
[359203587,1745809838422,-188.86296,0.00028948,2]
[359203589,1745809838431,-205.11101785,0.0002945,8]
[359203591,1745809838441,-260.0,0.0003,2]
[359203593,1745809838450,-422.20193307,0.0003028,2]
[359203595,1745809838460,-250.50377986,0.00030391,2]
[359203597,1745809838470,-205.11101785,0.000304,9]
[359203599,1745809838479,-151.0,0.000313,20]
[359203602,1745809838488,-205.11101785,0.0003135,9]
[359203604,1745809838499,-151.0,0.000321,18]
[359203606,1745809838508,-503.33029037,0.00032185,5]
[359203608,1745809838517,-205.11101785,0.000323,10]
[359203610,1745809838527,-1137.88408562,0.000325,30]
[359203612,1745809838537,-421.20781996,0.0003272,2]
[359203613,1745809838547,-138872.224238,0.00032728,2]
[359203615,1745809838556,-540.92,0.00032846,3]
[359203617,1745809838565,-177.313,0.00032855,33]
[359203619,1745809838574,-1000.0,0.00032855,2]
[359203621,1745809838583,-500.0,0.00032855,2]
[359203623,1745809838594,-277744.448475,0.00032856,2]
[359203625,1745809838603,-882.67,0.00032856,3]
[359203627,1745809838612,-500.0,0.00032873,5]
[359203629,1745809838621,-502.28692997,0.00032873,5]
[359203631,1745809838631,-500.0,0.00032873,5]
[359203633,1745809838640,-500.0,0.00032873,5]
[359203635,1745809838650,-300.0,0.00032873,5]
[359203637,1745809838660,-446.1726341,0.00032876,2]
[359203639,1745809838669,-500.77010991,0.00032876,2]
[359203641,1745809838680,-501.81232517,0.00032876,2]
[359203643,1745809838690,-400.0,0.00032876,2]
[359203644,1745809838699,-400.0,0.00032876,2]
[359203646,1745809838708,-400.0,0.00032876,2]
[359203648,1745809838718,-400.0,0.00032876,2]
[359203650,1745809838728,-400.0,0.00032876,2]
[359203652,1745809838737,-400.0,0.00032876,2]
[359203654,1745809838746,-400.0,0.00032876,2]
[359203656,1745809838757,-400.0,0.00032876,2]
[359203658,1745809838767,-400.0,0.00032876,2]
[359203660,1745809838776,-400.0,0.00032876,2]
[359203662,1745809838785,-400.0,0.00032876,2]
[359203664,1745809838794,-400.0,0.00032876,2]
[359203666,1745809838803,-400.0,0.00032876,2]
[359203668,1745809838813,-400.0,0.00032876,2]
[359203670,1745809838822,-400.0,0.00032876,2]
[359203672,1745809838832,-400.0,0.00032876,2]
[359203674,1745809838842,-400.0,0.00032876,2]
[359203676,1745809838851,-500.0,0.00032876,2]
[359203678,1745809838860,-500.0,0.00032876,2]
[359203680,1745809838869,-500.0,0.00032876,2]
[359203682,1745809838879,-500.0,0.00032876,2]
[359203684,1745809838888,-152.28036513,0.00032876,2]
[359203685,1745809838897,-400.0,0.00032876,2]
[359203686,1745809838906,-400.0,0.00032876,2]
[359203687,1745809838915,-400.0,0.00032876,2]
[359203688,1745809838923,-400.0,0.00032876,2]
[359203689,1745809838933,-400.0,0.00032876,2]
[359203690,1745809838941,-400.0,0.00032876,2]
[359203691,1745809838950,-400.0,0.00032876,2]
[359203692,1745809838959,-400.0,0.00032876,2]
[359203693,1745809838967,-164.756291,0.00032876,2]
[359203694,1745809838976,-400.0,0.00032876,2]
[359203695,1745809838985,-400.0,0.00032876,2]
[359203696,1745809838994,-400.0,0.00032876,2]
[359203697,1745809839003,-400.0,0.00032876,2]
[359203698,1745809839012,-400.0,0.00032876,2]